Workbook

Sheet Sheet1
A1: 姓名 | B1: 支部 | C1: “总体”评价 | D1: “签署一份承诺”评价 | E1: “研读一部经典”评价 | F1: “开展一项调查”评价 | G1: “做好一周义工”评价 | H1: “帮助一位同学”评价 | I1: “组织一项评议”评价 | J1: 总分
A2: 曾瑾 | B2: 本科生第一党支部 | C2: 14.29032258 | D2: 9.709677419 | E2: 14.64516129 | F2: 14.35483871 | G2: 14.51612903 | H2: 14.51612903 | I2: 14.67741935 | J2: =SUM(C2:I2) -> 96.70967742
A3: 易景 | B3: 本科生第一党支部 | C3: 14.32258065 | D3: 9.741935484 | E3: 14.19354839 | F3: 14.35483871 | G3: 14.48387097 | H3: 14.22580645 | I3: 14.41935484 | J3: =SUM(C3:I3) -> 95.74193548
A4: 秦安琪 | B4: 本科生第一党支部 | C4: 14.25806452 | D4: 9.774193548 | E4: 14.32258065 | F4: 14.29032258 | G4: 14.32258065 | H4: 14.19354839 | I4: 14.16129032 | J4: =SUM(C4:I4) -> 95.32258065
A5: 刘康才 | B5: 本科生第一党支部 | C5: 13.74193548 | D5: 9.419354839 | E5: 13.83870968 | F5: 13.90322581 | G5: 14.22580645 | H5: 13.12903226 | I5: 13.35483871 | J5: =SUM(C5:I5) -> 91.61290323
A6: 陈向烨 | B6: 本科生第一党支部 | C6: 14.5483871 | D6: 9.741935484 | E6: 14.58064516 | F6: 14.5483871 | G6: 14.58064516 | H6: 14.48387097 | I6: 14.51612903 | J6: =SUM(C6:I6) -> 97
A7: 郭书恺 | B7: 本科生第一党支部 | C7: 14.48387097 | D7: 9.709677419 | E7: 14.48387097 | F7: 14.38709677 | G7: 14.51612903 | H7: 14.48387097 | I7: 14.58064516 | J7: =SUM(C7:I7) -> 96.64516129
A8: 谭沁 | B8: 本科生第一党支部 | C8: 14.48387097 | D8: 9.64516129 | E8: 14.58064516 | F8: 14.58064516 | G8: 14.61290323 | H8: 14.61290323 | I8: 14.5483871 | J8: =SUM(C8:I8) -> 97.06451613
A9: 黄巧儿 | B9: 本科生第二党支部 | C9: 14.61290323 | D9: 9.806451613 | E9: 14.5483871 | F9: 14.58064516 | G9: 14.70967742 | H9: 14.61290323 | I9: 14.5483871 | J9: =SUM(C9:I9) -> 97.41935484
A10: 潘滢安 | B10: 本科生第二党支部 | C10: 14.77419355 | D10: 9.774193548 | E10: 14.58064516 | F10: 14.61290323 | G10: 14.74193548 | H10: 14.5483871 | I10: 14.61290323 | J10: =SUM(C10:I10) -> 97.64516129
A11: 江海莲 | B11: 本科生第二党支部 | C11: 14.5483871 | D11: 9.64516129 | E11: 14.5483871 | F11: 14.41935484 | G11: 14.64516129 | H11: 14.5483871 | I11: 14.4516129 | J11: =SUM(C11:I11) -> 96.80645161
A12: 杨晓莉 | B12: 本科生第二党支部 | C12: 14.48387097 | D12: 9.64516129 | E12: 14.4516129 | F12: 14.25806452 | G12: 14.58064516 | H12: 14.4516129 | I12: 14.51612903 | J12: =SUM(C12:I12) -> 96.38709677
A13: 杨慧欣 | B13: 本科生第二党支部 | C13: 14.41935484 | D13: 9.709677419 | E13: 14.4516129 | F13: 14.41935484 | G13: 14.5483871 | H13: 14.41935484 | I13: 14.35483871 | J13: =SUM(C13:I13) -> 96.32258065
A14: 余锦霞 | B14: 本科生第二党支部 | C14: 14.4516129 | D14: 9.741935484 | E14: 14.4516129 | F14: 14.32258065 | G14: 14.5483871 | H14: 14.4516129 | I14: 14.51612903 | J14: =SUM(C14:I14) -> 96.48387097
A15: 时锦江 | B15: 本科生第二党支部 | C15: 14.32258065 | D15: 9.677419355 | E15: 14.35483871 | F15: 14.35483871 | G15: 14.48387097 | H15: 14.51612903 | I15: 14.51612903 | J15: =SUM(C15:I15) -> 96.22580645
A16: 骆趣 | B16: 本科生第二党支部 | C16: 14.51612903 | D16: 9.774193548 | E16: 14.4516129 | F16: 14.4516129 | G16: 14.38709677 | H16: 14.4516129 | I16: 14.64516129 | J16: =SUM(C16:I16) -> 96.67741935
A17: 李家欣 | B17: 本科生第三党支部 | C17: 14.4516129 | D17: 9.64516129 | E17: 14.61290323 | F17: 14.41935484 | G17: 14.41935484 | H17: 14.29032258 | I17: 14.51612903 | J17: =SUM(C17:I17) -> 96.35483871
A18: 吴思琦 | B18: 本科生第三党支部 | C18: 14.51612903 | D18: 9.64516129 | E18: 14.4516129 | F18: 14.48387097 | G18: 14.41935484 | H18: 14.4516129 | I18: 14.48387097 | J18: =SUM(C18:I18) -> 96.4516129
A19: 刘苑菲 | B19: 本科生第三党支部 | C19: 14.51612903 | D19: 9.709677419 | E19: 14.51612903 | F19: 14.4516129 | G19: 14.4516129 | H19: 14.32258065 | I19: 14.4516129 | J19: =SUM(C19:I19) -> 96.41935484
A20: 傅宗耀 | B20: 本科生第三党支部 | C20: 14.35483871 | D20: 9.741935484 | E20: 14.32258065 | F20: 14.38709677 | G20: 14.32258065 | H20: 14.35483871 | I20: 14.51612903 | J20: =SUM(C20:I20) -> 96
A21: 姚婉婷 | B21: 本科生第三党支部 | C21: 14.64516129 | D21: 9.741935484 | E21: 14.74193548 | F21: 14.70967742 | G21: 14.58064516 | H21: 14.51612903 | I21: 14.64516129 | J21: =SUM(C21:I21) -> 97.58064516
A22: 谭诗雅 | B22: 本科生第三党支部 | C22: 14.58064516 | D22: 9.677419355 | E22: 14.41935484 | F22: 14.41935484 | G22: 14.67741935 | H22: 14.38709677 | I22: 14.48387097 | J22: =SUM(C22:I22) -> 96.64516129
A23: 韩德阳 | B23: 本科生第三党支部 | C23: 14.67741935 | D23: 9.903225806 | E23: 14.4516129 | F23: 14.51612903 | G23: 14.41935484 | H23: 14.35483871 | I23: 14.48387097 | J23: =SUM(C23:I23) -> 96.80645161
A24: 鲁越 | B24: 本科生第三党支部 | C24: 14.35483871 | D24: 9.64516129 | E24: 14.25806452 | F24: 14.32258065 | G24: 14.58064516 | H24: 14.48387097 | I24: 14.38709677 | J24: =SUM(C24:I24) -> 96.03225806
